bitfinex/quotes_SOLUSD_20250718
["timestamp","ask_amount","ask_price","bid_price","bid_amount"]
[1752837135892,8.29534497,178.54,178.5,0.66]
[1752837136410,0.55837846,178.55,178.5,7.63534497]
[1752837136593,8.19372343,178.57,178.52,7.63534497]
[1752837136913,8.19372343,178.57,178.53,0.66]
[1752837137231,0.55837846,178.57,178.54,0.66]
[1752837137514,7.63534497,178.56,178.51,26.0]
[1752837137724,7.63534497,178.54,178.5,0.69]
[1752837138025,7.63534497,178.53,178.5,0.69]
[1752837138221,7.63534497,178.54,178.5,0.69]
[1752837138591,13.23639938,178.54,178.5,0.69]
[1752837138825,5.60105441,178.54,178.5,0.69]
[1752837139119,13.23639938,178.54,178.5,0.69]
[1752837139711,8.19372343,178.53,178.5,0.69]
[1752837139900,6.26105441,178.54,178.5,0.69]
[1752837139901,13.89639938,178.54,178.5,0.69]
[1752837140098,13.23639938,178.54,178.5,0.03]
[1752837140296,13.23639938,178.54,178.51,0.66]
[1752837140909,13.23639938,178.54,178.5,0.03]
[1752837141097,7.63534497,178.51,178.5,0.03]
[1752837141891,8.29534497,178.51,178.5,0.03]
[1752837142829,7.63534497,178.51,178.5,0.03]
[1752837143124,8.19372343,178.51,178.5,0.03]
[1752837144222,7.63534497,178.51,178.5,0.03]
[1752837144722,0.55837846,178.52,178.5,0.03]
[1752837144918,7.63534497,178.51,178.5,0.03]
[1752837145430,7.63534497,178.52,178.5,0.03]
[1752837145933,7.63534497,178.51,178.5,0.03]
[1752837146295,8.19372343,178.51,178.5,0.03]
[1752837146715,8.85372343,178.51,178.5,0.03]
[1752837146920,14.45565049,178.51,178.5,0.03]
[1752837147514,6.82030552,178.51,178.5,0.03]
[1752837147720,13.89727203,178.51,178.5,0.03]
[1752837148498,42.93727203,178.51,178.5,0.03]
[1752837148910,5.60192706,178.51,178.5,0.03]
[1752837149120,7.63534497,178.51,178.5,0.03]
[1752837149417,8.29534497,178.51,178.5,0.03]
[1752837149816,0.55837846,178.52,178.5,0.03]
[1752837150129,0.55837846,178.53,178.5,0.69]
[1752837150715,8.19372343,178.53,178.5,0.69]
[1752837152021,0.55837846,178.53,178.5,0.69]
[1752837152219,7.63534497,178.53,178.5,0.69]
[1752837152732,1.21837846,178.52,178.5,0.03]
[1752837153025,7.63534497,178.51,178.5,0.03]
[1752837153232,8.29534497,178.51,178.5,0.03]
[1752837153439,37.33534497,178.51,178.5,0.03]
[1752837154010,42.93727203,178.51,178.5,0.03]
[1752837155604,67.35730097,178.51,178.5,0.03]
[1752837156103,59.721956,178.51,178.5,0.03]
[1752837156307,52.08661103,178.51,178.5,0.03]
[1752837156638,74.77578413,178.51,178.5,0.03]
[1752837157406,26.0,178.48,178.46,0.03]
[1752837157603,37.23372343,178.47,178.46,0.03]
[1752837157829,37.89372343,178.47,178.46,0.03]
[1752837158150,43.49690603,178.47,178.46,0.03]
[1752837158434,50.91538919,178.47,178.46,0.03]
[1752837158648,7.41848316,178.46,178.42,0.03]
[1752837158938,7.41848316,178.46,178.36,0.2]
[1752837158939,41.27068994,178.43,178.36,0.2]
[1752837159141,7.63534497,178.37,178.36,0.2]
[1752837159515,8.85372343,178.37,178.36,0.2]
[1752837159738,0.55837846,178.37,178.36,0.2]
[1752837160031,8.19372343,178.37,178.36,0.2]
[1752837160543,29.59837846,178.38,178.36,0.86]
[1752837160751,0.55837846,178.41,178.36,0.86]
[1752837161038,12.34203009,178.41,178.37,0.66]
[1752837161256,12.90040855,178.41,178.37,0.66]
[1752837161620,12.34203009,178.41,178.37,0.66]
[1752837161836,12.34203009,178.41,178.38,0.66]
[1752837162048,12.90040855,178.42,178.37,17.94834051]
[1752837162337,12.34203009,178.41,178.38,0.66]
[1752837162770,6.16332386,178.42,178.38,0.66]
[1752837163079,12.34203009,178.41,178.38,0.66]
[1752837163266,0.55837846,178.4,178.38,0.66]
[1752837163455,12.90040855,178.41,178.38,0.66]
[1752837163760,12.34203009,178.39,178.36,0.2]
[1752837164062,12.34203009,178.37,178.36,0.2]
[1752837164362,12.90040855,178.37,178.36,0.2]
[1752837164566,18.5064551,178.38,178.36,0.2]
[1752837164749,12.90040855,178.38,178.36,0.2]
[1752837165068,18.50643946,178.38,178.36,0.2]
[1752837165273,12.34203009,178.37,178.36,0.2]
[1752837165634,42.16203009,178.37,178.36,0.2]
[1752837166054,47.76835402,178.37,178.36,0.2]
[1752837166943,34.76632393,178.37,178.36,0.2]
[1752837167262,29.16,178.37,178.36,0.2]
[1752837167426,0.55837846,178.37,178.36,0.2]
[1752837167826,6.16470239,178.37,178.36,0.2]
[1752837168080,18.50673248,178.37,178.36,0.2]
[1752837168436,19.16673248,178.37,178.36,0.2]
[1752837168828,6.16470239,178.37,178.36,0.2]
[1752837169053,18.50673248,178.37,178.36,0.2]
[1752837169262,19.16673248,178.37,178.36,0.2]
[1752837171672,18.50673248,178.37,178.36,0.2]
[1752837172049,6.16470239,178.37,178.36,0.2]
[1752837172250,12.90040855,178.37,178.36,0.2]
[1752837172453,18.50673248,178.37,178.36,0.2]
[1752837173105,12.90040855,178.37,178.36,0.2]
[1752837173382,0.55837846,178.37,178.36,0.2]
[1752837173569,6.16470239,178.37,178.36,0.2]
[1752837174166,6.16470239,178.37,178.36,0.91]
[1752837174767,6.16470239,178.37,178.36,0.2]
[1752837175161,18.50673248,178.37,178.36,0.2]
[1752837176088,6.16470239,178.37,178.36,0.2]
[1752837176873,19.19673248,178.37,178.36,0.2]
[1752837178088,26.55917842,178.37,178.36,0.2]
[1752837178390,55.69917842,178.37,178.36,0.2]
[1752837180573,55.69917842,178.37,178.36,1e-08]
[1752837181474,72.48386239,178.37,178.36,1e-08]
[1752837181680,65.12141645,178.37,178.36,1e-08]
[1752837182789,72.78719572,178.37,178.36,1e-08]
[1752837182970,68.16726898,178.37,178.36,1e-08]
[1752837183593,16.78468397,178.36,178.32,0.03]
[1752837183891,7.72210335,178.33,178.32,0.03]
[1752837184193,36.84210335,178.33,178.32,0.03]
[1752837184373,37.53210335,178.33,178.32,0.03]
[1752837185396,43.1396848,178.33,178.32,0.03]
[1752837187087,43.1396848,178.33,178.32,1e-08]
[1752837187669,51.36384253,178.33,178.32,1e-08]
[1752837188273,43.69806326,178.33,178.32,1e-08]
[1752837189092,43.1396848,178.33,178.32,1e-08]
[1752837190991,42.4496848,178.33,178.32,1e-08]
[1752837191190,34.72758145,178.33,178.32,1e-08]
[1752837191584,42.4496848,178.33,178.32,1e-08]
[1752837191787,1.24837846,178.36,178.32,0.71000001]
[1752837191788,0.55837846,178.36,178.32,0.71000001]
[1752837192090,7.72210335,178.34,178.33,0.71]
[1752837192394,0.55837846,178.34,178.33,0.71]
[1752837192600,7.72210335,178.37,178.33,0.71]
[1752837192891,42.44814473,178.38,178.33,14.03962894]
[1752837193107,13.32814473,178.38,178.34,0.71]
[1752837193675,7.72210335,178.38,178.34,0.71]
[1752837194374,42.44792572,178.39,178.34,8.43210335]
[1752837194576,42.44792572,178.39,178.35,0.71]
[1752837196398,5.60548362,178.4,178.35,0.71]
[1752837196580,13.32758697,178.4,178.35,0.71]
[1752837196895,6.16386208,178.4,178.35,0.71]
[1752837197210,7.72210335,178.38,178.32,1.64690001]
[1752837197498,7.72210335,178.38,178.34,0.71]
[1752837197697,7.72210335,178.38,178.35,0.71]
[1752837197911,13.32827691,178.38,178.35,0.71]
[1752837198883,8.28048181,178.37,178.32,2.35690001]
[1752837199076,8.28048181,178.37,178.33,0.71]
[1752837199295,5.60617356,178.38,178.34,0.71]
[1752837199500,5.60617356,178.38,178.33,7.72210335]
[1752837199677,5.60617356,178.38,178.35,0.71]
[1752837199875,5.60617356,178.38,178.36,0.71]
[1752837200095,13.32827691,178.38,178.33,7.72210335]
[1752837200299,13.32827691,178.38,178.34,0.71]
[1752837200603,13.32827691,178.38,178.35,0.71]
[1752837201473,29.08,178.39,178.36,0.71]
[1752837201681,29.08,178.39,178.37,0.71]
[1752837201878,29.08,178.41,178.37,0.71]
[1752837202078,8.28048181,178.4,178.38,0.71]
[1752837202297,36.80210335,178.41,178.39,0.71]
[1752837202504,29.08,178.41,178.39,0.71]
[1752837202703,36.80210335,178.41,178.35,7.72210335]
[1752837202880,7.72210335,178.4,178.36,0.71]
[1752837203084,7.72210335,178.4,178.37,0.71]
[1752837203280,29.08,178.41,178.35,7.72210335]
[1752837203502,13.88558374,178.41,178.38,0.71]
[1752837203804,7.72210335,178.4,178.36,0.72]
[1752837203983,7.72210335,178.4,178.37,0.72]
[1752837204386,34.74482111,178.42,178.38,0.72]
[1752837204593,7.72210335,178.41,178.39,0.72]
[1752837204794,34.74482111,178.42,178.4,0.72]
[1752837205114,34.74482111,178.42,178.38,0.72]
[1752837205115,42.46692446,178.42,178.38,0.72]
[1752837205519,34.74482111,178.42,178.38,0.72]
[1752837205692,42.46692446,178.42,178.38,0.72]
[1752837206094,7.72210335,178.41,178.38,0.72]
[1752837206287,35.43482111,178.42,178.38,0.72]
[1752837206492,43.02530292,178.42,178.38,0.72]
[1752837206808,7.72210335,178.4,178.36,0.72]
[1752837207008,0.69,178.41,178.37,0.72]
[1752837207009,8.41210335,178.41,178.37,0.72]
[1752837207499,8.97048181,178.4,178.35,0.72]
[1752837207709,7.72210335,178.39,178.35,0.72]
[1752837207895,7.72210335,178.39,178.36,0.72]
[1752837208585,13.3280043,178.39,178.36,0.72]
[1752837208785,8.41210335,178.38,178.34,0.03]
[1752837209011,8.97048181,178.38,178.34,0.75]
[1752837209394,8.28048181,178.38,178.34,0.75]
[1752837209604,8.28048181,178.38,178.35,0.72]
[1752837209801,8.97048181,178.38,178.34,0.03]
[1752837210196,8.41210335,178.38,178.34,0.03]
[1752837210383,7.72210335,178.38,178.35,0.72]
[1752837210882,5.60632393,178.37,178.34,0.03]
[1752837211094,5.60632393,178.37,178.34,0.75]
[1752837212001,7.72210335,178.35,178.34,0.03]
[1752837212326,16.22237173,178.35,178.34,0.03]
[1752837212488,8.28048181,178.35,178.34,0.03]
[1752837212693,14.57743443,178.35,178.34,0.03]
[1752837215393,30.06119918,178.35,178.32,1e-08]
[1752837215711,7.72210335,178.33,178.32,1e-08]
[1752837215908,37.32048181,178.33,178.32,1e-08]
[1752837216120,38.01048181,178.33,178.32,1e-08]
[1752837216904,43.61806326,178.33,178.32,1e-08]
[1752837222203,35.89595991,178.33,178.32,1e-08]
[1752837222407,43.61806326,178.33,178.32,1e-08]
[1752837222921,42.92806326,178.33,178.32,1e-08]
[1752837224029,34.58758145,178.33,178.32,0.72000001]
[1752837224193,5.6073452,178.34,178.32,0.72000001]
[1752837224400,28.98,178.34,178.32,0.72000001]
[1752837224929,13.32915342,178.35,178.32,0.72000001]
[1752837226124,13.32915342,178.35,178.33,0.72]
[1752837228713,13.88753188,178.35,178.33,0.72]
[1752837228916,37.37210335,178.34,178.32,1e-08]
[1752837229121,8.28048181,178.33,178.32,1e-08]
[1752837229522,8.97048181,178.33,178.32,1e-08]
[1752837229819,8.28048181,178.33,178.32,1e-08]
[1752837230024,13.88806326,178.33,178.32,1e-08]
[1752837230625,6.16595991,178.33,178.32,0.72000001]
[1752837230794,6.16595991,178.33,178.32,1e-08]
[1752837230997,13.88806326,178.33,178.32,1e-08]
[1752837231700,6.16595991,178.33,178.32,1e-08]
[1752837231925,5.60758145,178.33,178.32,1e-08]
[1752837232122,13.3296848,178.33,178.32,1e-08]
[1752837232398,5.60758145,178.33,178.32,1e-08]
[1752837234209,5.60758145,178.33,178.32,0.67000001]
[1752837234412,5.60758145,178.33,178.32,1e-08]
[1752837235248,13.3296848,178.33,178.32,1e-08]
[1752837235806,5.60758145,178.33,178.32,1e-08]
[1752837236009,13.88806326,178.33,178.32,1e-08]
[1752837236540,5.60758145,178.33,178.32,1e-08]
[1752837237041,5.60758145,178.33,178.32,0.67000001]
[1752837237744,5.60758145,178.33,178.32,1e-08]
[1752837238242,13.88806326,178.33,178.32,1e-08]
[1752837238413,13.3296848,178.33,178.32,1e-08]
[1752837238614,13.88806326,178.33,178.32,1e-08]
[1752837238916,14.57806326,178.33,178.32,1e-08]
[1752837240738,5.60758145,178.33,178.32,1e-08]
[1752837241034,5.60758145,178.33,178.32,0.67000001]
[1752837242758,5.60726701,178.34,178.32,0.67000001]
[1752837243137,0.55837846,178.39,178.32,1e-08]
[1752837243326,7.72210335,178.35,178.32,1e-08]
[1752837243812,8.28048181,178.35,178.32,1e-08]
[1752837244015,7.72210335,178.33,178.32,1e-08]
[1752837244856,5.60758145,178.33,178.32,1e-08]
[1752837245151,5.60758145,178.33,178.32,0.67000001]
[1752837245522,5.60737925,178.34,178.32,0.67000001]
[1752837245723,5.60737925,178.34,178.33,0.67]
[1752837246314,34.48702747,178.35,178.33,0.67]
[1752837246532,5.60702747,178.35,178.33,0.67]
[1752837246728,5.60702747,178.35,178.34,0.67]
[1752837246921,5.60702747,178.35,178.32,1e-08]
[1752837247239,5.60702747,178.35,178.33,0.67]
[1752837248125,5.60632393,178.37,178.34,0.67]
[1752837248521,7.72210335,178.36,178.33,1.6276]
[1752837248736,7.72210335,178.36,178.33,0.67]
[1752837249132,8.41210335,178.36,178.32,1e-08]
[1752837249331,8.97048181,178.36,178.32,1e-08]
[1752837249523,56.78261557,178.37,178.32,1e-08]
[1752837249831,8.41210335,178.36,178.32,0.67000001]
[1752837250031,5.60726701,178.34,178.32,1e-08]
[1752837250425,13.32937036,178.34,178.32,1e-08]
[1752837250654,8.97048181,178.33,178.32,1e-08]
[1752837250822,8.41210335,178.33,178.32,1e-08]
[1752837251336,37.29210335,178.33,178.32,1e-08]
[1752837252137,42.8996848,178.33,178.32,1e-08]
[1752837253646,42.8996848,178.33,178.31,1e-08]
[1752837253825,8.97048181,178.32,178.31,1e-08]
[1752837254244,6.85627437,178.32,178.31,1e-08]
[1752837254553,14.57837772,178.32,178.31,1e-08]
[1752837255543,13.32999926,178.32,178.31,1e-08]
[1752837255750,5.60789591,178.32,178.31,0.67000001]
[1752837256423,5.60789591,178.32,178.31,1e-08]
[1752837256623,14.01999926,178.32,178.31,1e-08]
[1752837257050,5.60789591,178.32,178.31,1e-08]
[1752837257948,13.32999926,178.32,178.31,1e-08]
[1752837258926,14.01999926,178.32,178.31,1e-08]
[1752837259728,6.29789591,178.32,178.31,1e-08]
[1752837260050,14.01999926,178.32,178.31,1e-08]
[1752837260852,13.32999926,178.32,178.31,1e-08]
[1752837262746,5.60789591,178.32,178.31,1e-08]
[1752837262948,13.32999926,178.32,178.31,1e-08]
[1752837264156,5.60789591,178.32,178.31,1e-08]
[1752837264832,5.60789591,178.32,178.31,0.72000001]
[1752837265352,5.60789591,178.32,178.31,1e-08]
[1752837267860,13.32999926,178.32,178.31,1e-08]
[1752837268257,5.60789591,178.32,178.31,1e-08]
[1752837268657,13.98999926,178.32,178.31,1e-08]
[1752837269238,42.80999926,178.32,178.31,1e-08]
[1752837270465,43.36837772,178.32,178.31,1e-08]
[1752837271566,50.48700186,178.32,178.31,1e-08]
[1752837271859,13.28489851,178.32,178.31,1e-08]
[1752837272060,5.60789591,178.32,178.31,1e-08]
[1752837272437,13.32999926,178.32,178.31,1e-08]
[1752837272666,5.60789591,178.32,178.31,1e-08]
[1752837275050,13.32999926,178.32,178.31,1e-08]
[1752837275438,5.60789591,178.32,178.31,1e-08]
[1752837276562,34.42695262,178.35,178.31,0.72000001]
[1752837277069,34.42695262,178.35,178.32,0.72]
[1752837278956,34.42695262,178.35,178.33,0.72]
[1752837279545,5.60695262,178.35,178.33,0.72]
[1752837279873,5.60695262,178.35,178.31,0.72000001]
[1752837280072,8.28048181,178.34,178.31,0.72000001]
[1752837280254,8.94048181,178.34,178.31,1e-08]
[1752837280452,0.66,178.33,178.31,1e-08]
[1752837280758,8.28048181,178.34,178.31,1e-08]
[1752837280958,8.94048181,178.34,178.31,1e-08]
[1752837281348,5.60758145,178.33,178.31,1e-08]
[1752837281668,5.60758145,178.33,178.31,0.72000001]
[1752837282377,5.60737723,178.34,178.31,0.72000001]
[1752837282551,5.60737723,178.34,178.32,0.72]
[1752837283459,5.60737723,178.34,178.31,1e-08]
[1752837283665,5.60737723,178.34,178.31,0.72000001]
[1752837284070,13.32948058,178.34,178.31,0.72000001]
[1752837284576,13.98948058,178.34,178.31,0.72000001]
[1752837284961,8.94048181,178.33,178.31,1e-08]
[1752837285170,8.38210335,178.33,178.31,1e-08]
[1752837285352,5.60789591,178.32,178.31,1e-08]
[1752837285558,6.26789591,178.32,178.31,1e-08]
[1752837286259,5.60789591,178.32,178.31,1e-08]
[1752837287979,13.32999926,178.32,178.31,1e-08]
[1752837288286,13.98999926,178.32,178.31,1e-08]
[1752837288458,6.26789591,178.32,178.31,1e-08]
[1752837289451,5.60789591,178.32,178.31,1e-08]
[1752837291100,5.66789591,178.32,178.31,1e-08]
[1752837292000,0.06,178.32,178.31,0.72000001]
[1752837292163,0.06,178.32,178.31,8.44210336]
[1752837293582,0.06,178.32,178.31,0.72000001]
[1752837296081,0.06,178.32,178.31,8.44210336]
[1752837297086,5.66684321,178.36,178.31,8.44210336]
[1752837297270,5.66684321,178.36,178.32,8.39210335]
[1752837297468,5.66684321,178.36,178.32,7.72210335]
[1752837297690,5.66684321,178.36,178.33,0.67]
[1752837297865,5.66684321,178.36,178.33,8.39210335]
[1752837298083,5.66684321,178.36,178.34,0.67]
[1752837298571,5.66684321,178.36,178.32,7.72210335]
[1752837298769,5.66684321,178.36,178.33,0.67]
[1752837300768,5.66684321,178.36,178.34,0.67]
[1752837300966,0.06,178.36,178.34,0.67]
[1752837301170,0.06,178.36,178.34,7.72210335]
[1752837301406,0.06,178.36,178.35,0.67]
[1752837301569,0.06,178.36,178.35,8.39210335]
[1752837302597,0.06,178.36,178.34,7.72210335]
[1752837302892,0.06,178.36,178.35,0.67]
[1752837303096,0.06,178.36,178.33,8.39210335]
[1752837303696,0.06,178.36,178.33,0.67]
[1752837304193,0.74,178.36,178.33,0.67]
[1752837304772,6.34679547,178.36,178.31,26.67000001]
[1752837304972,14.06889882,178.36,178.32,0.67]
[1752837305468,6.34679547,178.36,178.32,0.67]
[1752837305688,0.06,178.36,178.34,7.72210335]
[1752837305886,0.06,178.36,178.35,8.39210335]
[1752837309174,0.06,178.36,178.35,13.99905597]
[1752837309371,0.06,178.36,178.35,8.39210335]
[1752837309980,0.06,178.36,178.35,13.99905597]
[1752837311896,0.06,178.36,178.35,8.39210335]
[1752837312581,0.06,178.36,178.35,13.99905597]
[1752837313102,0.06,178.36,178.33,34.39210335]
[1752837313284,0.06,178.36,178.34,0.67]
[1752837313603,0.74,178.36,178.32,8.42210335]
[1752837313793,0.74,178.36,178.32,7.75210335]
[1752837313993,5.66664006,178.36,178.33,0.67]
[1752837314382,6.34664006,178.36,178.32,7.75210335]
[1752837314587,6.34664006,178.36,178.32,8.42210335]
[1752837317725,5.66664006,178.36,178.33,0.67]
[1752837318405,5.66664006,178.36,178.33,8.39210335]
[1752837318609,6.34664006,178.36,178.33,8.39210335]
[1752837318798,6.34664006,178.36,178.33,0.67]
[1752837319731,6.34664006,178.36,178.33,8.39210335]
[1752837320113,0.06,178.36,178.34,8.39210335]
[1752837320317,0.06,178.36,178.34,7.72210335]
[1752837320514,0.06,178.36,178.34,8.39210335]
[1752837321512,0.06,178.36,178.35,8.39210335]
[1752837323026,0.06,178.36,178.35,0.67]
[1752837325637,0.06,178.36,178.35,8.39210335]
[1752837326412,0.06,178.36,178.35,37.11210335]
[1752837327223,0.06,178.36,178.35,42.71905597]
[1752837328011,0.06,178.36,178.35,34.99695262]
[1752837328207,0.06,178.36,178.35,37.11210335]
[1752837328630,0.06,178.36,178.35,0.67]
[1752837328839,0.06,178.36,178.34,36.44210335]
[1752837329010,0.06,178.36,178.35,8.41210335]
[1752837329504,0.06,178.36,178.35,8.97279861]
[1752837329706,0.06,178.36,178.35,51.75748258]
[1752837329937,0.06,178.36,178.35,61.03918258]
[1752837330630,0.06,178.36,178.35,66.6461352]
[1752837331129,0.06,178.39,178.38,26.0]
[1752837331347,0.06,178.39,178.38,63.00270431]
[1752837331517,0.06,178.39,178.38,63.69270431]
[1752837331926,0.06,178.39,178.38,80.47738828]
[1752837332531,0.06,178.39,178.38,86.08339792]
[1752837333720,0.06,178.39,178.38,27.25060096]
[1752837333937,0.06,178.39,178.38,62.44210335]
[1752837334133,0.06,178.39,178.38,33.72210335]
[1752837334335,0.06,178.39,178.38,62.44210335]
[1752837334546,0.06,178.39,178.38,55.41]
[1752837335037,0.06,178.39,178.38,63.13210335]
[1752837336850,0.06,178.39,178.38,68.73811299]
[1752837337025,0.06,178.39,178.38,69.29871395]
[1752837342272,0.06,178.39,178.38,86.08339792]
[1752837342541,0.06,178.39,178.38,119.71339792]
[1752837342741,0.06,178.39,178.38,119.15279696]
[1752837342925,0.06,178.4,178.38,126.87490031]
[1752837343250,0.06,178.4,178.39,49.7642067]
[1752837344225,0.06,178.4,178.39,52.2124082]
[1752837344433,0.06,178.4,178.39,97.71709217]
[1752837345436,0.06,178.4,178.39,68.99709217]
[1752837345637,0.06,178.4,178.39,97.69709217]
[1752837345848,0.06,178.4,178.39,61.27498882]
[1752837346157,0.06,178.4,178.39,97.69709217]
[1752837347433,0.06,178.4,178.39,105.41919552]
[1752837347630,0.06,178.4,178.39,105.97976505]
[1752837351535,1e-08,178.4,178.39,105.97976505]
[1752837351738,0.06,178.42,178.41,59.63]
[1752837351949,0.06,178.43,178.41,121.41409401]
[1752837352156,0.06,178.43,178.42,42.04210335]
[1752837353456,0.06,178.43,178.42,47.64685618]
[1752837353656,0.06,178.43,178.42,93.13154015]
[1752837354053,0.06,178.43,178.42,92.44154015]
[1752837354357,0.06,178.43,178.42,58.81154015]
[1752837355263,0.06,178.43,178.42,59.47154015]
[1752837355440,0.06,178.43,178.42,93.10154015]
[1752837355963,0.06,178.43,178.42,93.66201543]
[1752837356351,0.06,178.43,178.42,26.56047528]
[1752837356555,0.72,178.43,178.42,68.02685618]
[1752837356741,0.06,178.43,178.42,68.02685618]
[1752837358069,0.72,178.43,178.42,26.0]
[1752837358277,0.72,178.43,178.4,7.72210335]
[1752837358566,0.72,178.43,178.41,28.7]
[1752837358769,0.66,178.42,178.41,36.42210335]
[1752837358966,0.66,178.42,178.4,7.72210335]
[1752837359271,0.66,178.42,178.4,28.7]
[1752837359474,0.66,178.41,178.4,28.7]
[1752837359642,0.66,178.41,178.38,7.72210335]
[1752837359845,0.06,178.43,178.39,7.72210335]
[1752837360067,0.66,178.4,178.39,7.72210335]
[1752837360249,0.06,178.43,178.39,7.72210335]
[1752837360449,0.66,178.42,178.4,7.72210335]
[1752837360853,0.06,178.43,178.41,7.72210335]
[1752837361067,0.06,178.43,178.42,7.72210335]
[1752837362754,0.72,178.43,178.42,7.72210335]
[1752837363062,0.72,178.43,178.39,26.0]
[1752837363285,0.72,178.43,178.39,62.50210335]
[1752837363472,0.72,178.43,178.39,54.78]
[1752837363774,0.72,178.43,178.39,36.50210335]
[1752837364155,0.66,178.42,178.4,7.72210335]
[1752837365373,0.66,178.41,178.4,7.72210335]
[1752837365974,0.72,178.43,178.4,7.72210335]
[1752837366274,0.66,178.42,178.4,7.72210335]
[1752837366776,0.66,178.42,178.38,7.72210335]
[1752837366949,0.66,178.42,178.39,28.78]
[1752837367152,6.26495039,178.42,178.39,28.78]
[1752837367474,0.66,178.41,178.38,7.72210335]
[1752837367848,0.66,178.41,178.38,26.0]
[1752837368255,7.72210335,178.4,178.35,7.75210335]
[1752837368458,0.66,178.39,178.36,7.72210335]
[1752837368884,0.55837846,178.41,178.36,7.72210335]
[1752837369048,0.66,178.39,178.35,34.39688264]
[1752837369254,0.66,178.38,178.35,28.79]
[1752837369551,0.66,178.37,178.36,7.72210335]
[1752837369766,0.66,178.39,178.36,7.72210335]
[1752837370380,6.16354133,178.41,178.35,34.39691604]
[1752837370565,6.16354133,178.41,178.36,7.72210335]
[1752837370566,0.66,178.38,178.36,7.72210335]
[1752837371074,0.66,178.4,178.36,7.72210335]
[1752837371276,0.66,178.39,178.36,13.32871569]
[1752837371450,0.66,178.42,178.38,7.72210335]
[1752837371650,0.06,178.43,178.41,7.72210335]
[1752837371882,0.06,178.43,178.42,7.72210335]
[1752837372057,0.06,178.43,178.41,28.78]
[1752837372255,0.06,178.43,178.42,7.72210335]
[1752837372977,0.72,178.43,178.39,62.50210335]
[1752837373280,0.06,178.43,178.39,42.10779293]
[1752837373482,0.66,178.42,178.38,26.0]
[1752837373660,7.72210335,178.41,178.38,26.0]
[1752837373868,0.66,178.4,178.36,13.32870267]
[1752837374179,0.66,178.39,178.36,42.10870267]
[1752837375068,0.66,178.39,178.36,28.76]
[1752837375269,13.32727268,178.41,178.36,36.48210335]
[1752837375476,0.66,178.38,178.36,36.48210335]
[1752837375685,0.66,178.38,178.36,36.50210335]
[1752837375978,0.66,178.38,178.36,7.72210335]
[1752837376279,0.66,178.4,178.36,7.72210335]
[1752837376466,0.66,178.4,178.37,7.72210335]
[1752837376773,0.66,178.4,178.38,7.72210335]
[1752837376983,0.66,178.42,178.38,7.72210335]
[1752837377559,5.66451061,178.43,178.38,7.72210335]
[1752837377560,0.06,178.43,178.4,7.72210335]
[1752837377755,0.06,178.43,178.41,7.72210335]
[1752837378160,0.66,178.42,178.39,54.76]
[1752837378370,0.66,178.41,178.39,26.0]
[1752837378963,0.06,178.42,178.39,33.72210335]
[1752837379181,0.72,178.42,178.39,33.72210335]
[1752837379386,0.72,178.42,178.4,7.72210335]
[1752837379387,0.06,178.42,178.4,7.72210335]
[1752837380484,0.72,178.42,178.4,7.72210335]
[1752837380658,0.72,178.42,178.39,33.72210335]
[1752837380860,0.66,178.41,178.38,7.72210335]
[1752837381062,0.66,178.41,178.37,28.78]
[1752837381261,0.66,178.41,178.38,7.72210335]
[1752837381571,0.06,178.42,178.4,7.72210335]
[1752837381770,0.06,178.42,178.41,7.72210335]
[1752837382484,0.06,178.42,178.41,26.0]
[1752837382690,0.06,178.42,178.41,33.72210335]
[1752837383486,0.06,178.42,178.41,62.52210335]
[1752837383689,0.06,178.42,178.41,33.72210335]
[1752837383889,0.06,178.42,178.41,68.10717033]